bitfinex/quotes_ETHUSD_20250916
["timestamp","ask_amount","ask_price","bid_price","bid_amount"]
[1757988461864,8.23273928,4535.9,4535.8,0.001]
[1757988466684,9.16103928,4535.9,4535.8,0.001]
[1757988468475,4.9115,4535.9,4535.8,0.001]
[1757988470486,7.13603414,4535.9,4535.8,0.001]
[1757988470794,7.2597847,4535.9,4535.8,0.001]
[1757988470981,4.9314,4535.9,4535.8,0.001]
[1757988472276,0.002,4535.9,4535.8,0.7866]
[1757988472478,7.94353928,4535.9,4535.8,0.7866]
[1757988473107,7.94353928,4535.9,4535.8,0.001]
[1757988473339,8.23543928,4535.9,4535.8,0.001]
[1757988473473,8.68593928,4535.9,4535.8,0.001]
[1757988473678,9.13683928,4535.9,4535.8,0.001]
[1757988474213,4.8873,4535.9,4535.8,0.001]
[1757988475714,3.694,4535.9,4535.8,0.001]
[1757988476078,3.9934,4535.9,4535.8,0.001]
[1757988477636,0.002,4535.9,4535.8,0.7548]
[1757988477835,3.694,4535.9,4535.8,1.1917]
[1757988478049,3.694,4535.9,4535.8,0.7548]
[1757988479348,3.694,4535.9,4535.8,1.1917]
[1757988480257,0.002,4535.9,4535.8,1.1917]
[1757988480406,3.694,4535.9,4535.8,1.1917]
[1757988480607,3.9934,4535.9,4535.8,0.001]
[1757988481419,4.9041,4535.9,4535.8,0.001]
[1757988481809,5.02792047,4535.9,4535.8,0.001]
[1757988482412,4.11722047,4535.9,4535.8,0.001]
[1757988483146,3.9934,4535.9,4535.8,0.001]
[1757988483319,3.694,4535.9,4535.8,0.001]
[1757988483513,3.694,4535.9,4535.8,0.4675]
[1757988483713,0.002,4535.9,4535.8,1.1917]
[1757988483916,3.694,4535.9,4535.8,1.1917]
[1757988485957,3.694,4535.9,4535.8,0.7548]
[1757988486160,3.9934,4535.9,4535.8,0.001]
[1757988486361,4.4753,4535.9,4535.8,0.001]
[1757988486564,7.10873414,4535.9,4535.8,0.001]
[1757988487078,4.9041,4535.9,4535.8,0.001]
[1757988487432,5.02793168,4535.9,4535.8,0.001]
[1757988488430,4.54603168,4535.9,4535.8,0.001]
[1757988488631,4.11723168,4535.9,4535.8,0.001]
[1757988488831,3.694,4535.9,4535.8,0.001]
[1757988489053,0.002,4535.9,4535.8,0.7548]
[1757988489253,3.694,4535.9,4535.8,1.1917]
[1757988489461,3.694,4535.9,4535.8,0.7548]
[1757988490974,0.002,4535.9,4535.8,0.7548]
[1757988491152,0.002,4535.9,4535.8,1.1917]
[1757988493235,0.002,4535.9,4535.8,0.001]
[1757988493236,0.3014,4535.9,4535.8,0.001]
[1757988493927,1.33593956,4535.9,4535.8,0.001]
[1757988494460,3.5405737,4535.9,4535.8,0.001]
[1757988494863,3.5405737,4535.9,4535.3,0.001]
[1757988494864,2.20475415,4535.7,4535.3,0.001]
[1757988495065,7.30533012,4535.4,4535.3,0.001]
[1757988495263,9.2156925,4535.4,4535.3,0.001]
[1757988495565,10.1263925,4535.4,4535.3,0.001]
[1757988495730,12.33126968,4535.4,4535.3,0.001]
[1757988496755,10.1263925,4535.4,4535.3,0.001]
[1757988497132,12.33126968,4535.4,4535.3,0.001]
[1757988497939,10.1263925,4535.4,4535.3,0.001]
[1757988498858,10.00255294,4535.4,4535.3,0.001]
[1757988500944,12.20743012,4535.4,4535.3,0.001]
[1757988501358,10.00255294,4535.4,4535.3,0.001]
[1757988502375,12.20743012,4535.4,4535.3,0.001]
[1757988502540,12.33100717,4535.4,4535.3,0.001]
[1757988503581,12.20743012,4535.4,4535.3,0.001]
[1757988504079,12.33094173,4535.4,4535.3,0.001]
[1757988505643,12.20743012,4535.4,4535.3,0.001]
[1757988506467,11.29673012,4535.4,4535.3,0.001]
[1757988506674,9.09185294,4535.4,4535.3,0.001]
[1757988506883,11.42020474,4535.4,4535.3,0.001]
[1757988507057,10.12912756,4535.4,4535.3,0.001]
[1757988507265,8.79245294,4535.4,4535.3,0.001]
[1757988507471,5.10045294,4535.4,4535.3,0.001]
[1757988507671,8.79345294,4535.4,4535.3,0.001]
[1757988507980,9.10045294,4535.4,4535.3,0.001]
[1757988508494,1.696,4535.6,4535.3,0.7932]
[1757988508661,1.696,4535.6,4535.4,0.9072]
[1757988508662,6.693,4535.5,4535.4,0.9072]
[1757988508861,6.693,4535.5,4535.4,1.2201]
[1757988510158,3.0,4535.5,4535.4,0.7922]
[1757988510460,6.693,4535.5,4535.4,0.7922]
[1757988510688,6.693,4535.5,4535.4,1.2201]
[1757988512062,6.693,4535.5,4535.4,0.7922]
[1757988512264,0.002,4535.8,4535.7,2.20473135]
[1757988512605,0.002,4535.8,4535.7,2.22677866]
[1757988512894,0.002,4535.9,4535.8,2.20468274]
[1757988513078,0.002,4535.9,4535.8,3.13392956]
[1757988513283,0.002,4535.9,4535.8,3.44682956]
[1757988513593,0.002,4535.9,4535.8,5.58598139]
[1757988513797,0.002,4535.9,4535.8,5.56393457]
[1757988516114,0.002,4535.9,4535.8,3.42478274]
[1757988516318,0.002,4535.9,4535.8,17.92478274]
[1757988517112,0.002,4535.9,4535.8,21.61678274]
[1757988522648,0.002,4535.9,4535.8,21.8147611]
[1757988526544,0.002,4535.9,4535.8,21.29748274]
[1757988526844,0.002,4535.9,4535.8,23.43663457]
[1757988531953,0.2992,4535.9,4535.8,22.64443457]
[1757988532158,0.2992,4535.9,4535.8,16.81428274]
[1757988532329,1.2379,4535.9,4535.8,2.20468274]
[1757988532524,0.7748,4535.9,4535.8,5.89568274]
[1757988534561,0.2992,4535.9,4535.8,5.89568274]
[1757988535332,0.2992,4535.9,4535.8,2.20468274]
[1757988535543,0.2992,4535.9,4535.8,5.89668274]
[1757988535932,1.2374,4535.9,4535.8,5.89668274]
[1757988536952,0.7661,4535.9,4535.8,5.89668274]
[1757988537153,0.2992,4535.9,4535.8,5.89668274]
[1757988540244,1.2374,4535.9,4535.8,0.001]
[1757988540468,6.33785294,4535.9,4535.8,0.001]
[1757988540666,10.02885294,4535.9,4535.8,0.001]
[1757988541179,12.23348708,4535.9,4535.8,0.001]
[1757988541342,10.02885294,4535.9,4535.8,0.001]
[1757988543740,12.23348708,4535.9,4535.8,0.001]
[1757988543941,10.02885294,4535.9,4535.8,0.001]
[1757988544476,12.23348708,4535.9,4535.8,0.001]
[1757988545417,15.23348708,4535.9,4535.8,0.001]
[1757988545757,12.18010553,4535.9,4535.8,0.001]
[1757988546158,14.38473967,4535.9,4535.8,0.001]
[1757988546569,12.18010553,4535.9,4535.8,0.001]
[1757988546971,7.9284,4535.9,4535.8,0.001]
[1757988549103,10.13303414,4535.9,4535.8,0.001]
[1757988549913,6.9902,4535.9,4535.8,0.001]
[1757988550226,6.9902,4535.9,4535.8,3.39168274]
[1757988550227,0.1116,4535.9,4535.8,3.39168274]
[1757988550426,0.002,4535.9,4535.8,3.9513281]
[1757988550784,0.002,4535.9,4535.8,0.7572]
[1757988551178,0.002,4535.9,4535.8,2.96188274]
[1757988551613,0.002,4535.9,4535.8,3.39168274]
[1757988552337,0.002,4535.9,4535.8,2.96188274]
[1757988552485,0.002,4535.9,4535.8,3.39168274]
[1757988553490,4.25370553,4535.9,4535.8,3.39168274]
[1757988553829,4.25370553,4535.9,4535.8,1.187]
[1757988554591,4.25370553,4535.9,4535.8,3.39168274]
[1757988554995,4.25370553,4535.9,4535.8,17.89168274]
[1757988555308,4.25370553,4535.9,4535.8,3.39168274]
[1757988555691,4.25370553,4535.9,4535.8,1.187]
[1757988555920,4.25370553,4535.9,4535.8,0.7572]
[1757988556434,4.25370553,4535.9,4535.8,2.96188274]
[1757988556731,4.25370553,4535.9,4535.8,0.7572]
[1757988556933,4.25370553,4535.9,4535.8,0.001]
[1757988556934,5.01760553,4535.9,4535.8,0.001]
[1757988557097,5.59410553,4535.9,4535.8,0.001]
[1757988557537,1.3424,4535.9,4535.8,0.001]
[1757988559931,0.8711,4535.9,4535.8,0.001]
[1757988560232,0.4042,4535.9,4535.8,0.001]
[1757988562643,0.1116,4535.9,4535.8,0.001]
[1757988563528,0.4246,4535.9,4535.8,0.001]
[1757988564234,0.1116,4535.9,4535.8,0.001]
[1757988564406,0.002,4535.9,4535.8,3.43348274]
[1757988565439,4.25370553,4535.9,4535.8,1.2288]
[1757988565637,4.25370553,4535.9,4535.8,0.7567]
[1757988566339,4.56670553,4535.9,4535.8,0.001]
[1757988566526,1.241,4535.9,4535.8,0.001]
[1757988567339,0.315,4535.9,4535.8,0.001]
[1757988570121,1.241,4535.9,4535.8,0.001]
[1757988570323,3.44563414,4535.9,4535.8,0.001]
[1757988570543,3.56939716,4535.9,4535.8,0.001]
[1757988570743,6.56939716,4535.9,4535.8,0.001]
[1757988571538,6.10459716,4535.9,4535.8,0.001]
[1757988571912,6.56939716,4535.9,4535.8,0.001]
[1757988573049,7.36139716,4535.9,4535.8,0.001]
[1757988573346,2.20487718,4535.4,4535.3,0.001]
[1757988573534,10.14758271,4535.4,4535.3,0.001]
[1757988573850,11.51034573,4535.4,4535.3,0.001]
[1757988574343,14.51034573,4535.4,4535.3,0.001]
[1757988576266,14.51034573,4535.4,4534.3,0.4731]
[1757988576267,2.20512028,4534.9,4534.3,0.001]
[1757988576430,12.63582581,4534.9,4534.3,0.001]
[1757988576752,16.99858883,4534.9,4534.3,0.001]
[1757988580459,2.20536344,4534.4,4534.3,0.001]
[1757988580664,10.14806897,4534.4,4534.3,0.001]
[1757988580865,13.46106897,4534.4,4534.3,0.001]
[1757988582579,13.80698353,4534.4,4534.3,0.001]
[1757988583645,11.60162009,4534.4,4534.3,0.001]
[1757988583945,7.03691456,4534.4,4534.3,0.7567]
[1757988585850,9.242278,4534.4,4534.3,0.001]
[1757988586180,9.555278,4534.4,4534.3,0.001]
[1757988586380,7.34991456,4534.4,4534.3,0.001]
[1757988587463,7.03691456,4534.4,4534.3,0.001]
[1757988588078,9.242278,4534.4,4534.3,0.001]
[1757988589102,9.242278,4534.4,4533.3,0.001]
[1757988589103,15.29697811,4534.3,4533.3,0.001]
[1757988589391,10.72704897,4534.4,4533.3,0.001]
[1757988589392,7.25170553,4533.5,4533.3,0.001]
[1757988589556,7.25170553,4533.5,4533.4,0.4731]
[1757988589557,10.95970553,4533.5,4533.4,0.4731]
[1757988589765,10.95970553,4533.5,4533.4,0.7606]
[1757988589986,10.95970553,4533.5,4533.4,1.2288]
[1757988590172,10.96070553,4533.5,4533.4,1.2288]
[1757988591205,13.16650678,4533.5,4533.4,1.2288]
[1757988592470,10.96070553,4533.5,4533.4,1.2288]
[1757988593412,13.16650678,4533.5,4533.4,1.2288]
[1757988594013,10.96070553,4533.5,4533.4,1.2288]
[1757988594507,13.16650678,4533.5,4533.4,1.2288]
[1757988595310,10.96070553,4533.5,4533.4,1.2288]
[1757988596006,7.25170553,4533.5,4533.4,1.2288]
[1757988596207,13.16450678,4533.5,4533.4,1.2288]
[1757988596504,10.95870553,4533.5,4533.4,1.2288]
[1757988596909,6.706,4533.5,4533.4,1.2089]
[1757988597212,10.95770553,4533.5,4533.4,1.2089]
[1757988599037,7.25170553,4533.5,4533.4,1.2089]
[1757988599239,10.95770553,4533.5,4533.4,1.2089]
[1757988599843,3.705,4533.6,4533.4,3.41471095]
[1757988600147,0.1096,4533.7,4533.6,2.2057526]
[1757988600308,8.06630553,4533.7,4533.5,0.9131]
[1757988600643,8.06630553,4533.7,4533.6,1.218]
[1757988601004,0.1096,4533.7,4533.6,3.4237526]
[1757988601205,3.705,4533.9,4533.7,2.20569178]
[1757988601406,3.705,4533.9,4533.6,0.3049]
[1757988601657,1.697,4534.3,4534.0,2.20555674]
[1757988601808,3.705,4534.2,4534.1,0.9131]
[1757988602162,3.705,4534.2,4534.1,1.218]
[1757988606545,3.705,4534.2,4534.1,3.42350936]
[1757988607467,1.8066,4534.3,4534.2,2.20546072]
[1757988607468,0.1096,4534.3,4534.2,2.20546072]
[1757988607671,2.04191664,4535.0,4534.2,2.20546072]
[1757988607672,1.696,4535.0,4534.2,1.80516599]
[1757988607971,3.704,4535.1,4534.9,2.20511386]
[1757988608130,0.1096,4535.3,4535.0,0.3049]
[1757988608131,3.8136,4535.3,4535.0,0.3049]
[1757988608334,3.8136,4535.3,4535.1,0.9131]
[1757988608535,3.8136,4535.3,4535.2,1.218]
[1757988610265,3.8136,4535.3,4535.2,0.7658]
[1757988614447,3.8136,4535.3,4535.2,1.218]
[1757988614785,3.8106,4535.3,4535.2,1.218]
[1757988615945,0.34584875,4535.7,4535.2,3.76528126]
[1757988616146,0.022,4535.9,4535.2,3.76528126]
[1757988616147,0.022,4535.9,4535.3,0.93514925]
[1757988616451,0.022,4535.9,4535.8,2.20468274]
[1757988616654,0.022,4535.9,4535.8,2.50958274]
[1757988616869,0.022,4535.9,4535.8,3.44472956]
[1757988618185,0.022,4535.9,4535.8,17.94472956]
[1757988618349,0.022,4535.9,4535.8,19.94859119]
[1757988620005,0.022,4535.9,4535.8,14.5]
[1757988620006,5.42896288,4535.9,4535.8,14.5]
[1757988620186,5.42896288,4535.9,4535.6,2.2047751]
[1757988620567,5.42896288,4535.9,4535.7,2.20472189]
[1757988621089,0.3278,4535.9,4535.8,2.20468274]
[1757988621285,0.022,4535.9,4535.8,2.20468274]
[1757988621660,0.022,4535.9,4535.8,5.0300869]
[1757988621860,0.022,4535.9,4535.8,5.00804008]
[1757988622990,0.022,4535.9,4535.8,8.70604008]
[1757988623163,0.022,4535.9,4535.8,11.70604008]
[1757988623795,0.022,4535.9,4535.8,26.20604008]
[1757988634302,0.3278,4535.9,4535.8,25.43614008]
[1757988634516,0.3278,4535.9,4535.8,24.94624008]
[1757988634818,0.022,4535.9,4535.8,25.74604008]
[1757988636689,0.3278,4535.9,4535.8,24.94624008]
[1757988637630,0.022,4535.9,4535.8,24.94624008]
[1757988637921,0.022,4535.9,4535.8,25.43614008]
[1757988638683,0.022,4535.9,4535.8,20.39968274]
[1757988639854,0.022,4535.9,4535.8,21.65648274]
[1757988640810,0.3278,4535.9,4535.8,16.70468274]
[1757988641044,0.8017,4535.9,4535.8,16.70468274]
[1757988641198,0.3278,4535.9,4535.8,20.39668274]
[1757988644131,0.022,4535.9,4535.8,20.39668274]
[1757988645036,0.022,4535.9,4535.8,6.69648274]
[1757988645336,0.022,4535.9,4535.8,21.19648274]
[1757988646034,0.022,4535.9,4535.8,23.33563457]
[1757988647348,0.022,4535.9,4535.8,21.19648274]
[1757988647555,0.022,4535.9,4535.8,20.39668274]
[1757988648447,0.022,4535.9,4535.8,5.89668274]
[1757988648751,0.022,4535.9,4535.8,6.00628274]
[1757988648955,0.022,4535.9,4535.8,20.50628274]
[1757988649325,0.022,4535.9,4535.8,20.99618274]
[1757988649526,0.022,4535.9,4535.8,21.30608274]
[1757988649928,0.022,4535.9,4535.8,21.75698274]
[1757988651069,0.022,4535.9,4535.8,21.30608274]
[1757988653131,0.022,4535.9,4535.8,20.99618274]
[1757988653333,0.3175,4535.9,4535.8,20.50628274]
[1757988655554,0.022,4535.9,4535.8,20.50628274]
[1757988655754,0.022,4535.9,4535.8,20.98458274]
[1757988656892,0.022,4535.9,4535.8,21.72718274]
[1757988657453,0.022,4535.9,4535.8,23.64053158]
[1757988659053,0.002,4536.3,4535.8,23.64053158]
[1757988659054,0.002,4536.3,4536.2,2.20448833]
[1757988659255,0.002,4536.3,4536.2,5.91753321]
[1757988659463,0.002,4536.3,4536.2,7.22598833]
[1757988660662,0.002,4536.3,4536.2,21.72598833]
[1757988660895,0.002,4536.3,4536.2,23.86514016]
[1757988662794,0.002,4536.4,4536.3,2.20443974]
[1757988662795,1e-08,4536.4,4536.3,2.20443974]
[1757988663094,1e-08,4536.4,4536.3,6.14818413]
[1757988663403,1e-08,4536.4,4536.3,6.42533974]
[1757988664259,1e-08,4536.4,4536.3,20.92533974]
[1757988664592,1e-08,4536.9,4536.8,2.20419679]
[1757988664794,1e-08,4536.9,4536.8,9.02683875]
[1757988664995,1e-08,4536.9,4536.8,10.22569679]
[1757988665996,1e-08,4536.9,4536.8,10.66781541]
[1757988666187,1e-08,4536.9,4536.8,12.12452386]
[1757988666598,1e-08,4536.9,4536.8,26.62452386]
[1757988667405,1e-08,4536.9,4536.8,26.18112386]
[1757988671107,1e-08,4536.9,4536.8,26.62452386]
[1757988671309,1e-08,4536.9,4536.8,27.41652386]
[1757988674017,1e-08,4536.9,4536.8,26.97312386]
[1757988674210,1e-08,4536.9,4536.8,27.41652386]
[1757988679946,1e-08,4536.9,4536.8,27.42292386]
[1757988682435,1e-08,4536.9,4536.8,27.51125459]
[1757988691612,0.4534,4537.4,4537.3,2.99595389]
[1757988691766,0.4534,4537.4,4537.3,10.20395182]
[1757988691960,0.4534,4537.4,4537.3,10.31355182]
[1757988692362,0.4534,4537.4,4537.3,25.28595182]
[1757988692558,0.7393,4537.4,4537.3,25.28595182]
[1757988693495,0.7393,4537.4,4537.3,24.49395182]
[1757988695403,0.2879,4537.4,4537.3,24.49395182]
[1757988695601,0.2879,4537.4,4537.3,28.68395182]
[1757988695894,0.7393,4537.4,4537.3,28.68395182]
[1757988696100,1.0087,4537.4,4537.3,28.68395182]
[1757988697098,1.0087,4537.4,4537.3,24.99595182]
[1757988697411,1.0087,4537.4,4537.3,16.81355389]
[1757988697580,1.0087,4537.4,4537.3,20.50155389]
[1757988698883,1.0087,4537.4,4537.3,16.81355389]
[1757988699082,1.0087,4537.4,4537.3,20.50155389]
[1757988700108,1.0087,4537.4,4537.3,6.00155389]
[1757988700703,1.0087,4537.4,4537.3,20.50155389]
[1757988701919,1.0087,4537.4,4537.3,18.188]
[1757988702496,1.0087,4537.4,4537.3,20.39195389]
[1757988702833,1.0087,4537.4,4537.3,5.89195389]
[1757988703038,1.0087,4537.4,4537.3,3.688]
[1757988704615,1.0087,4537.4,4537.3,5.89195389]
[1757988704942,1.0087,4537.4,4537.3,2.20395389]
[1757988705331,1.0087,4537.4,4537.2,5.89199873]
[1757988705635,0.7208,4537.3,4537.2,5.89199873]
[1757988705869,1.0065,4537.3,4537.2,5.89199873]
[1757988709837,1.0065,4537.3,4537.0,2.3136542]
[1757988710039,4.24543842,4537.1,4537.0,5.8920542]
[1757988710242,5.27083842,4537.1,4537.0,3.688]
[1757988710642,5.27083842,4537.1,4537.0,5.89209962]
[1757988711121,5.00113842,4537.1,4537.0,5.89209962]
[1757988711321,0.7557,4537.1,4537.0,5.89209962]
[1757988711856,0.002,4537.4,4537.3,2.20395389]
[1757988712060,0.002,4537.4,4537.3,7.11275389]
[1757988712262,0.002,4537.4,4537.3,7.22235389]
[1757988712627,0.002,4537.4,4537.3,7.11275389]
[1757988712977,0.002,4537.4,4537.3,8.15403191]
[1757988713529,0.002,4537.4,4537.3,22.65403191]
[1757988715821,0.002,4537.4,4537.3,21.91223191]
[1757988716253,0.002,4537.4,4537.3,22.22603191]
[1757988716665,0.002,4537.4,4537.3,22.69183191]
[1757988719670,0.002,4537.4,4537.3,21.43323191]
[1757988720372,0.002,4537.4,4537.3,6.00155389]
[1757988720373,0.8094,4537.4,4537.3,6.00155389]
[1757988720586,0.3158,4537.4,4537.3,6.00155389]
[1757988720873,1.0512,4537.4,4537.3,6.00155389]
[1757988721038,0.3158,4537.4,4537.3,6.00155389]
[1757988721244,0.002,4537.4,4537.3,6.00155389]
[1757988721482,0.002,4537.4,4537.3,6.31535389]
[1757988721891,0.002,4537.4,4537.3,6.00155389]
[1757988722194,0.8094,4537.4,4537.3,6.00155389]
[1757988722493,1.0512,4537.4,4537.3,6.00155389]
[1757988722890,1.0512,4537.4,4537.3,5.89195389]
[1757988725074,0.8094,4537.4,4537.3,5.89195389]
[1757988726698,0.002,4537.4,4537.3,7.25515389]
[1757988729304,0.002,4537.4,4537.3,6.78935389]
[1757988729688,0.002,4537.4,4537.3,6.00155389]
[1757988730416,0.002,4537.4,4537.3,20.50155389]
[1757988733409,0.002,4537.4,4537.3,6.00155389]
[1757988733823,0.002,4537.4,4537.3,20.50155389]
[1757988734321,1.049,4537.4,4537.3,3.688]
[1757988734693,0.5946,4537.4,4537.3,5.89195389]
[1757988735101,0.101,4537.4,4537.3,5.89195389]
[1757988735296,0.002,4537.4,4537.3,6.67975389]
[1757988735610,0.002,4537.4,4537.3,6.78935389]
[1757988735811,0.002,4537.4,4537.3,7.25515389]
[1757988738222,0.002,4537.4,4537.3,21.75515389]
[1757988738599,0.002,4537.4,4537.3,20.81535389]
[1757988738795,0.5946,4537.4,4537.3,0.1096]
[1757988738995,0.5946,4537.4,4537.3,3.688]
[1757988739228,1.049,4537.4,4537.3,3.688]
[1757988739552,1.049,4537.4,4537.3,5.89195389]
[1757988739553,0.101,4537.4,4537.3,5.89195389]
[1757988740014,0.101,4537.4,4537.3,6.66255389]
[1757988740015,0.002,4537.4,4537.3,6.66255389]
[1757988740221,0.002,4537.4,4537.3,7.09825389]
[1757988741937,0.002,4537.4,4537.3,5.89195389]
[1757988742116,0.1257,4537.4,4537.3,5.89195389]
[1757988742526,5.67976517,4537.4,4536.8,0.44311862]
[1757988742726,5.09526517,4536.9,4536.8,0.001]
[1757988743129,6.10766517,4536.9,4536.8,0.001]
[1757988743514,6.21826517,4536.9,4536.8,0.001]
[1757988745056,9.90526517,4536.9,4536.8,0.001]
[1757988745608,12.10941337,4536.9,4536.8,0.001]
[1757988745925,9.90526517,4536.9,4536.8,0.001]
[1757988748527,9.79466517,4536.9,4536.8,0.001]
[1757988749053,11.99881337,4536.9,4536.8,0.001]
[1757988750749,15.91404742,4536.9,4536.8,0.001]
[1757988752065,14.69614742,4536.9,4536.8,0.001]
[1757988752262,12.03319922,4536.9,4536.8,0.001]
[1757988752482,12.36876517,4536.9,4536.8,0.001]
[1757988752635,14.57291337,4536.9,4536.8,0.001]
[1757988753763,14.66130462,4536.9,4536.8,0.001]
[1757988754826,12.45715642,4536.9,4536.8,0.001]
[1757988755058,11.99835642,4536.9,4536.8,0.001]
[1757988755665,14.20250462,4536.9,4536.8,0.001]
[1757988755972,11.99835642,4536.9,4536.8,0.001]
[1757988756273,11.87165642,4536.9,4536.8,0.001]
[1757988757985,10.51150462,4536.9,4536.8,0.001]
[1757988758183,14.19950462,4536.9,4536.8,0.001]
[1757988759081,11.99535642,4536.9,4536.8,0.001]
[1757988759960,14.19950462,4536.9,4536.8,0.001]
[1757988760788,11.87165642,4536.9,4536.8,0.001]
[1757988761968,14.07580462,4536.9,4536.8,0.001]
[1757988762133,11.87165642,4536.9,4536.8,0.001]
[1757988763755,5.18365642,4536.9,4536.8,0.7716]
[1757988763959,3.7976,4537.0,4536.8,1.2073]
[1757988764141,6.7976,4537.0,4536.9,0.8976]
[1757988764354,6.7976,4537.0,4536.9,1.2063]
[1757988764869,0.002,4537.4,4536.9,3.77363846]
[1757988764870,0.1116,4537.4,4536.9,3.77363846]
[1757988765177,3.0,4537.3,4537.1,2.20405104]
[1757988765357,3.1116,4537.4,4537.2,0.3087]
[1757988765683,3.1116,4537.4,4537.2,1.2063]
[1757988765837,3.1116,4537.4,4537.3,0.4357]
[1757988766037,3.1116,4537.4,4537.3,0.7444]
[1757988766239,3.1116,4537.4,4537.3,1.2063]
[1757988767478,0.002,4537.4,4537.3,3.41025389]
[1757988768258,0.002,4537.4,4537.3,0.4619]
[1757988768451,0.002,4537.4,4537.0,0.8976]
[1757988768648,0.002,4537.4,4537.0,3.10167138]
[1757988768887,0.002,4537.4,4537.3,0.3087]
[1757988769391,0.002,4537.4,4537.3,1.2063]
[1757988769535,0.002,4537.4,4537.3,3.41025389]
[1757988771953,0.002,4537.4,4537.3,1.2063]
[1757988772788,0.002,4537.4,4537.3,0.4619]
[1757988772967,0.002,4537.4,4537.0,0.9551]
[1757988773177,0.002,4537.4,4537.1,0.4938]
[1757988773388,0.002,4537.4,4537.1,0.9551]
[1757988775595,0.002,4537.4,4537.2,0.4774]
[1757988776011,5.09526517,4537.3,4537.0,2.20409096]
[1757988776299,5.09526517,4537.3,4537.0,3.12089096]
[1757988776465,5.09526517,4537.3,4537.1,0.4774]
[1757988776809,5.09526517,4537.3,4537.2,0.2984]
[1757988777096,5.09526517,4537.3,4537.1,0.4774]
[1757988778439,0.099,4537.2,4536.9,0.1096]
[1757988778593,0.1096,4537.1,4536.8,0.001]
[1757988779112,0.1096,4537.1,4536.8,0.4784]
[1757988780295,5.19786517,4536.9,4536.8,0.001]
[1757988781720,5.19786517,4536.9,4536.8,0.2994]
[1757988781721,5.09526517,4536.9,4536.8,0.2994]
[1757988781922,3.687,4537.0,4536.8,0.7768]
[1757988782094,3.687,4537.0,4536.8,1.2162]
[1757988782298,3.687,4537.0,4536.9,0.9168]
[1757988782497,3.687,4537.0,4536.9,1.2152]
[1757988786037,3.687,4537.0,4536.8,0.001]
[1757988786038,3.9829,4537.0,4536.8,0.001]
[1757988786205,5.57076517,4536.9,4536.8,0.001]
[1757988786408,5.09526517,4536.9,4536.8,0.001]
[1757988786647,5.39076517,4536.9,4536.8,0.001]
[1757988787105,5.86626517,4536.9,4536.8,0.001]
[1757988789856,4.54496007,4536.9,4536.8,0.001]
[1757988792479,5.02046007,4536.9,4536.8,0.001]
[1757988793195,5.28026007,4536.9,4536.8,0.001]
[1757988793368,5.02046007,4536.9,4536.8,0.001]
[1757988794169,4.54496007,4536.9,4536.8,0.001]
[1757988795796,7.22460827,4536.9,4536.8,0.001]
[1757988795995,4.54496007,4536.9,4536.8,0.001]
[1757988796404,5.02046007,4536.9,4536.8,0.001]
[1757988796772,5.36617955,4536.9,4536.8,0.001]
[1757988798899,4.89067955,4536.9,4536.8,0.001]
[1757988799195,4.59517955,4536.9,4536.8,1.2162]
[1757988799572,7.69437604,4536.9,4536.8,0.001]
[1757988801404,5.01472784,4536.9,4536.8,0.001]
[1757988801979,4.71882784,4536.9,4536.8,0.001]
[1757988802208,8.28217955,4536.9,4536.8,1.2728]
[1757988802372,7.93646007,4536.9,4536.8,1.2728]
[1757988802677,7.93646007,4536.9,4536.8,0.7991]
[1757988802883,7.93846007,4536.9,4536.8,1.2728]
[1757988808928,8.60132117,4536.9,4536.8,1.2728]
[1757988810035,8.60032117,4536.9,4536.8,1.2728]
[1757988810917,4.3508611,4536.9,4536.8,1.2728]
[1757988811295,4.3508611,4536.9,4536.8,3.47699679]
[1757988811296,0.6648611,4536.9,4536.8,3.47699679]
[1757988811634,4.3508611,4536.9,4536.8,3.47699679]
[1757988811941,0.002,4536.9,4536.8,4.15472552]
[1757988813245,0.002,4536.9,4536.8,18.65472552]
[1757988816245,0.002,4536.9,4536.8,4.15472552]
[1757988816645,0.002,4536.9,4536.8,18.65472552]
[1757988818321,0.002,4536.9,4536.8,18.18102552]
[1757988818659,0.002,4536.9,4536.8,18.65472552]
[1757988819756,0.002,4536.9,4536.8,4.15472552]
[1757988820117,0.002,4536.9,4536.8,18.65472552]
[1757988822916,0.002,4536.9,4536.8,22.34072552]
[1757988823322,0.002,4536.9,4536.8,7.84072552]
[1757988823736,0.002,4536.9,4536.8,22.34072552]
[1757988824678,0.002,4536.9,4536.8,23.92612552]
[1757988824961,0.002,4536.9,4536.8,27.93732552]
[1757988825846,0.022,4537.9,4536.9,3.792]
[1757988826045,0.022,4537.9,4537.8,6.45317111]
[1757988826250,0.022,4537.9,4537.8,10.89195114]
[1757988826560,0.022,4537.9,4537.8,11.94139065]
[1757988826864,0.022,4537.9,4537.8,26.44139065]
[1757988828281,0.022,4537.9,4537.8,22.19193058]
[1757988828484,0.022,4537.9,4537.8,24.33108241]
[1757988831781,0.022,4537.9,4537.8,24.2427429]
[1757988832354,0.022,4537.9,4537.8,19.2859429]
[1757988832547,0.3244,4537.9,4537.8,14.5]
[1757988832749,5.28816007,4537.9,4537.6,3.684]
[1757988832967,0.4612,4537.8,4537.6,3.684]
[1757988833253,4.82696007,4537.9,4537.6,3.684]
[1757988833254,0.7631,4537.7,4537.6,5.88780818]
[1757988835651,0.3019,4537.7,4537.6,5.88780818]
[1757988840703,1.0451,4537.7,4537.6,3.684]
[1757988840992,1.0451,4537.7,4537.3,0.001]